[Event "Late-Titled-Tuesday-Blitz-February-06-2024"]
[Site "Chess.com"]
[Date "2024.02.06"]
[Round "2"]
[White "jens1102"]
[Black "rasmussvane"]
[Result "1/2-1/2"]
[WhiteElo "2620"]
[BlackElo "2968"]
[TimeControl "180+1"]
[EndTime "14:18:53 PST"]
[Termination "Game drawn - insufficient material"]

1. d4 {[%clk 0:02:59.4]} 1... Nf6 {[%clk 0:02:54.7]} 2. c4 {[%clk 0:03:00]} 2...
e6 {[%clk 0:02:52.6]} 3. Nf3 {[%clk 0:02:58.7]} 3... d5 {[%clk 0:02:50.8]} 4. g3
{[%clk 0:02:58.5]} 4... Bd6 {[%clk 0:02:46.2]} 5. Bg2 {[%clk 0:02:57.8]} 5...
O-O {[%clk 0:02:46.7]} 6. O-O {[%clk 0:02:58.3]} 6... Nc6 {[%clk 0:02:47.2]} 7.
b3 {[%clk 0:02:57.1]} 7... dxc4 {[%clk 0:02:40.1]} 8. bxc4 {[%clk 0:02:56.9]}
8... e5 {[%clk 0:02:40.5]} 9. d5 {[%clk 0:02:54.9]} 9... Na5 {[%clk 0:02:37.8]}
10. Nfd2 {[%clk 0:02:52.8]} 10... b6 {[%clk 0:02:04.4]} 11. Qc2 {[%clk
0:02:50.6]} 11... Bd7 {[%clk 0:02:02]} 12. Bb2 {[%clk 0:02:49.3]} 12... Qe7
{[%clk 0:02:01.4]} 13. Nc3 {[%clk 0:02:44.6]} 13... Rac8 {[%clk 0:01:57.9]} 14.
Rfd1 {[%clk 0:02:31.2]} 14... Rfe8 {[%clk 0:01:57.6]} 15. Nce4 {[%clk
0:02:24.3]} 15... Nxe4 {[%clk 0:01:52.6]} 16. Bxe4 {[%clk 0:02:19.3]} 16... g6
{[%clk 0:01:52.4]} 17. Bg2 {[%clk 0:01:57]} 17... f5 {[%clk 0:01:50.6]} 18. a3
{[%clk 0:01:44.1]} 18... Nb7 {[%clk 0:01:50]} 19. Qc3 {[%clk 0:01:41.3]} 19...
Nc5 {[%clk 0:01:47.5]} 20. Nb3 {[%clk 0:01:36.9]} 20... Na4 {[%clk 0:01:46.4]}
21. Qc2 {[%clk 0:01:36.2]} 21... Nxb2 {[%clk 0:01:46.9]} 22. Qxb2 {[%clk
0:01:37.1]} 22... Ba4 {[%clk 0:01:22.9]} 23. Rdc1 {[%clk 0:01:29.8]} 23... h5
{[%clk 0:01:16.8]} 24. h4 {[%clk 0:01:25.4]} 24... Kh7 {[%clk 0:01:14.7]} 25. e3
{[%clk 0:01:21.6]} 25... Rg8 {[%clk 0:01:08.7]} 26. c5 {[%clk 0:01:13.2]} 26...
bxc5 {[%clk 0:01:02.7]} 27. Na5 {[%clk 0:01:13.8]} 27... g5 {[%clk 0:01:00.8]}
28. hxg5 {[%clk 0:01:12.1]} 28... Qxg5 {[%clk 0:01:00.9]} 29. Nc6 {[%clk
0:01:08.1]} 29... Bxc6 {[%clk 0:00:50]} 30. dxc6 {[%clk 0:01:08.2]} 30... h4
{[%clk 0:00:49.9]} 31. Bd5 {[%clk 0:00:50.2]} 31... hxg3 {[%clk 0:00:27.7]} 32.
Bxg8+ {[%clk 0:00:47.3]} 32... Rxg8 {[%clk 0:00:28.6]} 33. f4 {[%clk 0:00:46.6]}
33... exf4 {[%clk 0:00:27]} 34. exf4 {[%clk 0:00:21.6]} 34... Bxf4 {[%clk
0:00:18.4]} 35. Kg2 {[%clk 0:00:21.5]} 35... Bxc1 {[%clk 0:00:18]} 36. Rxc1
{[%clk 0:00:21.9]} 36... Rg6 {[%clk 0:00:14.9]} 37. Rf1 {[%clk 0:00:10.7]} 37...
Rh6 {[%clk 0:00:12.8]} 38. Qe5 {[%clk 0:00:09.1]} 38... Rh2+ {[%clk 0:00:09.8]}
39. Kg1 {[%clk 0:00:09.7]} 39... Rh1+ {[%clk 0:00:07.2]} 40. Kxh1 {[%clk
0:00:10]} 40... g2+ {[%clk 0:00:07.4]} 41. Kg1 {[%clk 0:00:10.9]} 41... gxf1=Q+
{[%clk 0:00:08]} 42. Kxf1 {[%clk 0:00:11.8]} 42... Qg7 {[%clk 0:00:01.9]} 43.
Qxf5+ {[%clk 0:00:12.1]} 43... Kh8 {[%clk 0:00:02.4]} 44. Qc8+ {[%clk
0:00:11.8]} 44... Kh7 {[%clk 0:00:02.7]} 45. Qf5+ {[%clk 0:00:11.7]} 45... Kh6
{[%clk 0:00:03.4]} 46. Qxc5 {[%clk 0:00:12]} 46... Qf6+ {[%clk 0:00:03.7]} 47.
Ke2 {[%clk 0:00:12.4]} 47... Qf7 {[%clk 0:00:04.2]} 48. Qxa7 {[%clk 0:00:11.9]}
48... Qe6+ {[%clk 0:00:04.8]} 49. Kd3 {[%clk 0:00:12.1]} 49... Qxc6 {[%clk
0:00:05.7]} 50. Qe3+ {[%clk 0:00:11.9]} 50... Kg6 {[%clk 0:00:05.9]} 51. Qe4+
{[%clk 0:00:12.5]} 51... Qxe4+ {[%clk 0:00:06.4]} 52. Kxe4 {[%clk 0:00:13.4]}
52... Kf7 {[%clk 0:00:07.1]} 53. Kd5 {[%clk 0:00:14]} 53... Ke7 {[%clk
0:00:07.3]} 54. Kc6 {[%clk 0:00:14.7]} 54... Kd8 {[%clk 0:00:07.9]} 55. a4
{[%clk 0:00:09.5]} 55... Kc8 {[%clk 0:00:08.3]} 56. a5 {[%clk 0:00:10.1]} 56...
Kb8 {[%clk 0:00:08.9]} 57. a6 {[%clk 0:00:10.4]} 57... Ka7 {[%clk 0:00:09.4]}
58. Kxc7 {[%clk 0:00:11.3]} 58... Kxa6 {[%clk 0:00:09.8]} 1/2-1/2

[Event "Late-Titled-Tuesday-Blitz-February-06-2024"]
[Site "Chess.com"]
[Date "2024.02.06"]
[Round "2"]
[White "MeisterJabo"]
[Black "MathiasWomacka"]
[Result "1/2-1/2"]
[WhiteElo "2333"]
[BlackElo "2524"]
[TimeControl "180+1"]
[EndTime "14:18:55 PST"]
[Termination "Game drawn - timeout vs insufficient material"]

1. c4 {[%clk 0:03:00]} 1... c5 {[%clk 0:02:58.8]} 2. g3 {[%clk 0:03:00.4]} 2...
Nf6 {[%clk 0:02:58.8]} 3. Bg2 {[%clk 0:03:00.9]} 3... d5 {[%clk 0:02:58.1]} 4.
cxd5 {[%clk 0:03:01.8]} 4... Nxd5 {[%clk 0:02:58.2]} 5. Nc3 {[%clk 0:03:02.7]}
5... Nc7 {[%clk 0:02:57.1]} 6. a3 {[%clk 0:03:03]} 6... g6 {[%clk 0:02:50]} 7.
b4 {[%clk 0:02:53.4]} 7... cxb4 {[%clk 0:02:46.3]} 8. axb4 {[%clk 0:02:54.3]}
8... Bg7 {[%clk 0:02:46.2]} 9. Nf3 {[%clk 0:02:51.5]} 9... O-O {[%clk
0:02:44.4]} 10. O-O {[%clk 0:02:50.9]} 10... Nc6 {[%clk 0:02:44.2]} 11. b5
{[%clk 0:02:49.2]} 11... Nxb5 {[%clk 0:02:42.5]} 12. Qb3 {[%clk 0:02:29.1]}
12... Nbd4 {[%clk 0:02:18.9]} 13. Nxd4 {[%clk 0:02:25.4]} 13... Nxd4 {[%clk
0:02:17.4]} 14. Qd1 {[%clk 0:02:25.7]} 14... Bg4 {[%clk 0:02:05.9]} 15. Bb2
{[%clk 0:02:16.3]} 15... Nxe2+ {[%clk 0:02:03.1]} 16. Nxe2 {[%clk 0:02:15.9]}
16... Bxb2 {[%clk 0:02:02.5]} 17. Rb1 {[%clk 0:02:16.2]} 17... Bf6 {[%clk
0:01:47.7]} 18. Rxb7 {[%clk 0:02:10.3]} 18... Qd3 {[%clk 0:01:41.4]} 19. f3
{[%clk 0:01:56.5]} 19... Bf5 {[%clk 0:01:28.2]} 20. Rb3 {[%clk 0:01:26]} 20...
Qd6 {[%clk 0:01:12.4]} 21. d4 {[%clk 0:01:19.6]} 21... a5 {[%clk 0:01:04.1]} 22.
f4 {[%clk 0:01:10.7]} 22... Ra7 {[%clk 0:00:56.9]} 23. Rb5 {[%clk 0:00:47.3]}
23... a4 {[%clk 0:00:51.6]} 24. Rd5 {[%clk 0:00:47.2]} 24... Qb6 {[%clk
0:00:44.2]} 25. Nc3 {[%clk 0:00:39.4]} 25... a3 {[%clk 0:00:43]} 26. Na2 {[%clk
0:00:19.6]} 26... Rd8 {[%clk 0:00:33.3]} 27. Rxd8+ {[%clk 0:00:17.3]} 27... Qxd8
{[%clk 0:00:34.2]} 28. d5 {[%clk 0:00:15.6]} 28... Qb6+ {[%clk 0:00:26.1]} 29.
Kh1 {[%clk 0:00:15.7]} 29... Qb2 {[%clk 0:00:22.8]} 30. Nc1 {[%clk 0:00:13.3]}
30... a2 {[%clk 0:00:22]} 31. Nxa2 {[%clk 0:00:13.7]} 31... Rxa2 {[%clk
0:00:20.9]} 32. Qf3 {[%clk 0:00:14.2]} 32... h5 {[%clk 0:00:18.6]} 33. h3 {[%clk
0:00:14]} 33... Bxh3 {[%clk 0:00:12.9]} 34. Rg1 {[%clk 0:00:14.2]} 34... Bxg2+
{[%clk 0:00:12.1]} 35. Rxg2 {[%clk 0:00:15.1]} 35... Qxg2+ {[%clk 0:00:11.5]}
36. Qxg2 {[%clk 0:00:16]} 36... Rxg2 {[%clk 0:00:09]} 37. Kxg2 {[%clk
0:00:16.9]} 37... Kf8 {[%clk 0:00:08.8]} 38. g4 {[%clk 0:00:14.7]} 38... Ke8
{[%clk 0:00:09.7]} 39. f5 {[%clk 0:00:13.3]} 39... hxg4 {[%clk 0:00:06.7]} 40.
fxg6 {[%clk 0:00:13.6]} 40... fxg6 {[%clk 0:00:04.6]} 41. Kg3 {[%clk 0:00:14.5]}
41... Kd7 {[%clk 0:00:04.9]} 42. Kxg4 {[%clk 0:00:15.4]} 42... Kd6 {[%clk
0:00:05.5]} 43. Kf4 {[%clk 0:00:16.3]} 43... Kxd5 {[%clk 0:00:05.8]} 44. Ke3
{[%clk 0:00:17.2]} 44... g5 {[%clk 0:00:05.6]} 45. Kf3 {[%clk 0:00:18.1]} 45...
Ke5 {[%clk 0:00:06.1]} 46. Kg4 {[%clk 0:00:19]} 46... Ke4 {[%clk 0:00:06.1]} 47.
Kg3 {[%clk 0:00:19.5]} 47... e5 {[%clk 0:00:06.7]} 48. Kg2 {[%clk 0:00:20.4]}
48... Kd3 {[%clk 0:00:07]} 49. Kf2 {[%clk 0:00:21.3]} 49... e4 {[%clk
0:00:07.5]} 50. Ke1 {[%clk 0:00:22.2]} 50... e3 {[%clk 0:00:07.8]} 51. Kd1
{[%clk 0:00:22.6]} 51... e2+ {[%clk 0:00:07.8]} 52. Ke1 {[%clk 0:00:23.5]} 52...
g4 {[%clk 0:00:07.7]} 53. Kf2 {[%clk 0:00:24.4]} 53... Kd2 {[%clk 0:00:08.3]}
54. Kg3 {[%clk 0:00:25]} 54... e1=Q+ {[%clk 0:00:08]} 55. Kf4 {[%clk 0:00:25.9]}
55... Qf2+ {[%clk 0:00:06.5]} 56. Kxg4 {[%clk 0:00:25.7]} 56... Ke3 {[%clk
0:00:02.9]} 57. Kh5 {[%clk 0:00:26.1]} 1/2-1/2

[Event "Late-Titled-Tuesday-Blitz-February-06-2024"]
[Site "Chess.com"]
[Date "2024.02.06"]
[Round "2"]
[White "Crasyhealer"]
[Black "aleksanchess"]
[Result "1-0"]
[WhiteElo "2499"]
[BlackElo "2206"]
[TimeControl "180+1"]
[EndTime "14:18:56 PST"]
[Termination "Crasyhealer won on time"]

1. c4 {[%clk 0:02:59.6]} 1... e5 {[%clk 0:02:59.2]} 2. Nc3 {[%clk 0:02:59.5]}
2... Nf6 {[%clk 0:02:59]} 3. Nf3 {[%clk 0:03:00.1]} 3... Nc6 {[%clk 0:02:58.7]}
4. g3 {[%clk 0:02:59.3]} 4... d5 {[%clk 0:02:59]} 5. cxd5 {[%clk 0:02:59.1]}
5... Nxd5 {[%clk 0:02:59.3]} 6. d3 {[%clk 0:02:57.7]} 6... Be7 {[%clk
0:02:57.6]} 7. Bg2 {[%clk 0:02:58]} 7... Nb6 {[%clk 0:02:57.7]} 8. b3 {[%clk
0:02:54.7]} 8... O-O {[%clk 0:02:56.5]} 9. Bb2 {[%clk 0:02:55.1]} 9... Be6
{[%clk 0:02:53.3]} 10. O-O {[%clk 0:02:54.8]} 10... f5 {[%clk 0:02:52.2]} 11.
Rc1 {[%clk 0:02:48.8]} 11... Bf6 {[%clk 0:02:51.9]} 12. Nd2 {[%clk 0:02:45.1]}
12... Qd7 {[%clk 0:02:46.2]} 13. a4 {[%clk 0:02:42.1]} 13... Nd5 {[%clk
0:02:45.4]} 14. Nc4 {[%clk 0:02:39.7]} 14... Rab8 {[%clk 0:02:39]} 15. Qc2
{[%clk 0:01:41.1]} 15... Nd4 {[%clk 0:02:38.4]} 16. Qd1 {[%clk 0:01:38.3]} 16...
c5 {[%clk 0:02:24.7]} 17. e3 {[%clk 0:01:13.7]} 17... Nc6 {[%clk 0:02:21.6]} 18.
Nxd5 {[%clk 0:01:08.3]} 18... Bxd5 {[%clk 0:02:21.5]} 19. e4 {[%clk 0:01:08.8]}
19... Be6 {[%clk 0:02:17.5]} 20. Ne3 {[%clk 0:01:07]} 20... Nb4 {[%clk 0:01:59]}
21. exf5 {[%clk 0:01:03.5]} 21... Bxf5 {[%clk 0:01:46.6]} 22. Nxf5 {[%clk
0:01:03.8]} 22... Qxf5 {[%clk 0:01:46.6]} 23. Be4 {[%clk 0:01:03.7]} 23... Qc8
{[%clk 0:01:34]} 24. Qh5 {[%clk 0:00:56.4]} 24... g6 {[%clk 0:01:23.5]} 25. Bxg6
{[%clk 0:00:56.4]} 25... hxg6 {[%clk 0:01:22.6]} 26. Qxg6+ {[%clk 0:00:57.3]}
26... Bg7 {[%clk 0:01:22.8]} 27. Bxe5 {[%clk 0:00:56.6]} 27... Rf7 {[%clk
0:01:13.4]} 28. Bxb8 {[%clk 0:00:35.6]} 28... Qxb8 {[%clk 0:01:13.2]} 29. Rxc5
{[%clk 0:00:35.9]} 29... Nc6 {[%clk 0:01:01.2]} 30. Rh5 {[%clk 0:00:34.9]} 30...
Rf6 {[%clk 0:00:49.4]} 31. Qh7+ {[%clk 0:00:34.6]} 31... Kf8 {[%clk 0:00:49.8]}
32. Rg5 {[%clk 0:00:33.6]} 32... Rf7 {[%clk 0:00:42.4]} 33. Re1 {[%clk
0:00:26.5]} 33... Qd8 {[%clk 0:00:40.9]} 34. h4 {[%clk 0:00:17.7]} 34... Qd4
{[%clk 0:00:40.1]} 35. Rf5 {[%clk 0:00:14.1]} 35... Qd7 {[%clk 0:00:25.8]} 36.
Rxf7+ {[%clk 0:00:10.8]} 36... Qxf7 {[%clk 0:00:25.9]} 37. Qe4 {[%clk
0:00:11.3]} 37... Ne5 {[%clk 0:00:20.7]} 38. Kg2 {[%clk 0:00:09.8]} 38... Nc6
{[%clk 0:00:16]} 39. b4 {[%clk 0:00:08.9]} 39... Nd4 {[%clk 0:00:15.7]} 40. h5
{[%clk 0:00:07.2]} 40... Nc6 {[%clk 0:00:08.8]} 41. Rh1 {[%clk 0:00:02.6]} 41...
Bh6 {[%clk 0:00:07.6]} 42. Re1 {[%clk 0:00:01.1]} 42... Bg7 {[%clk 0:00:07.3]}
43. Qg6 {[%clk 0:00:01.6]} 43... Qd5+ {[%clk 0:00:05.9]} 44. Re4 {[%clk
0:00:01.5]} 44... Ne5 {[%clk 0:00:04]} 45. Qf5+ {[%clk 0:00:01.1]} 45... Kg8
{[%clk 0:00:02.8]} 46. h6 {[%clk 0:00:02]} 46... Bxh6 {[%clk 0:00:01]} 47. Qxe5
{[%clk 0:00:01.6]} 47... Qxd3 {[%clk 0:00:01.3]} 48. Qe6+ {[%clk 0:00:01.6]}
48... Kh7 {[%clk 0:00:01.3]} 49. Rg4 {[%clk 0:00:02.5]} 1-0

[Event "Late-Titled-Tuesday-Blitz-February-06-2024"]
[Site "Chess.com"]
[Date "2024.02.06"]
[Round "2"]
[White "temiksmozg"]
[Black "BogdanDeac"]
[Result "0-1"]
[WhiteElo "2615"]
[BlackElo "2995"]
[TimeControl "180+1"]
[EndTime "14:19:07 PST"]
[Termination "BogdanDeac won by resignation"]

1. e4 {[%clk 0:02:58.7]} 1... e5 {[%clk 0:02:59.2]} 2. Nf3 {[%clk 0:02:58]} 2...
Nc6 {[%clk 0:02:59.8]} 3. Bb5 {[%clk 0:02:57.4]} 3... a6 {[%clk 0:03:00.1]} 4.
Ba4 {[%clk 0:02:57.3]} 4... Bc5 {[%clk 0:03:00.1]} 5. d3 {[%clk 0:02:56.3]} 5...
Nge7 {[%clk 0:02:57]} 6. Nc3 {[%clk 0:02:51.3]} 6... O-O {[%clk 0:02:52.4]} 7.
Bb3 {[%clk 0:02:48.1]} 7... d6 {[%clk 0:02:48.7]} 8. h3 {[%clk 0:02:47.7]} 8...
Na5 {[%clk 0:02:46.5]} 9. Be3 {[%clk 0:02:42.8]} 9... Nxb3 {[%clk 0:02:39.2]}
10. axb3 {[%clk 0:02:43.7]} 10... Bxe3 {[%clk 0:02:39.6]} 11. fxe3 {[%clk
0:02:43.9]} 11... f5 {[%clk 0:02:40.2]} 12. Qd2 {[%clk 0:02:39.2]} 12... h6
{[%clk 0:02:34.7]} 13. O-O-O {[%clk 0:02:36.6]} 13... fxe4 {[%clk 0:02:32.6]}
14. dxe4 {[%clk 0:02:33.9]} 14... Be6 {[%clk 0:02:31.8]} 15. Rhf1 {[%clk
0:02:29.4]} 15... a5 {[%clk 0:02:29.1]} 16. Nh4 {[%clk 0:02:18.6]} 16... Rxf1
{[%clk 0:02:07.8]} 17. Rxf1 {[%clk 0:02:18]} 17... Qd7 {[%clk 0:02:08.4]} 18. g4
{[%clk 0:02:17.6]} 18... a4 {[%clk 0:01:55.4]} 19. bxa4 {[%clk 0:02:15.2]} 19...
b5 {[%clk 0:01:55.4]} 20. Nf5 {[%clk 0:02:06.2]} 20... bxa4 {[%clk 0:01:47.9]}
21. Nxe7+ {[%clk 0:01:57.4]} 21... Qxe7 {[%clk 0:01:47.6]} 22. Nd5 {[%clk
0:01:58.3]} 22... Qd7 {[%clk 0:01:30.2]} 23. Qc3 {[%clk 0:01:57.4]} 23... Ra7
{[%clk 0:01:09.5]} 24. Qb4 {[%clk 0:01:54.7]} 24... Qe8 {[%clk 0:00:42.2]} 25.
Qc3 {[%clk 0:01:38.4]} 25... Qd8 {[%clk 0:00:30.9]} 26. Qc6 {[%clk 0:01:16.6]}
26... a3 {[%clk 0:00:18.1]} 27. bxa3 {[%clk 0:01:17.5]} 27... Rxa3 {[%clk
0:00:17.6]} 28. Kd2 {[%clk 0:01:17.7]} 28... Ra7 {[%clk 0:00:16.9]} 29. Rb1
{[%clk 0:01:16]} 29... Kh7 {[%clk 0:00:13.7]} 30. Rb7 {[%clk 0:01:09.8]} 30...
Rxb7 {[%clk 0:00:12.9]} 31. Qxb7 {[%clk 0:01:09.9]} 31... Bxd5 {[%clk
0:00:11.8]} 32. exd5 {[%clk 0:01:09.9]} 32... Qd7 {[%clk 0:00:10.7]} 33. Qb4
{[%clk 0:00:41.4]} 33... Qf7 {[%clk 0:00:08.8]} 34. Qe4+ {[%clk 0:00:40.2]}
34... g6 {[%clk 0:00:09]} 35. Ke2 {[%clk 0:00:39.1]} 35... Kg7 {[%clk
0:00:09.2]} 36. Qc4 {[%clk 0:00:36.5]} 36... Kf6 {[%clk 0:00:07.7]} 37. h4
{[%clk 0:00:35.1]} 37... Qd7 {[%clk 0:00:07.5]} 38. Kf3 {[%clk 0:00:32.4]} 38...
h5 {[%clk 0:00:06.1]} 39. Kg3 {[%clk 0:00:26.7]} 39... hxg4 {[%clk 0:00:04.3]}
40. Qxg4 {[%clk 0:00:27.6]} 40... Qf5 {[%clk 0:00:03.8]} 41. e4 {[%clk
0:00:25.7]} 41... Qf1 {[%clk 0:00:02.8]} 42. Qf3+ {[%clk 0:00:26.1]} 42... Qxf3+
{[%clk 0:00:02.4]} 43. Kxf3 {[%clk 0:00:27]} 43... Kg7 {[%clk 0:00:03]} 44. Kg4
{[%clk 0:00:24.9]} 44... Kh6 {[%clk 0:00:03.6]} 45. c3 {[%clk 0:00:24.4]} 45...
Kh7 {[%clk 0:00:03.9]} 46. Kg5 {[%clk 0:00:24.6]} 46... Kg7 {[%clk 0:00:04.2]}
47. h5 {[%clk 0:00:25.3]} 47... gxh5 {[%clk 0:00:04.4]} 48. Kxh5 {[%clk
0:00:26.2]} 48... Kh7 {[%clk 0:00:04.8]} 49. Kg5 {[%clk 0:00:26.4]} 49... Kg7
{[%clk 0:00:05.3]} 50. Kf5 {[%clk 0:00:25.5]} 50... Kf7 {[%clk 0:00:05.7]} 51.
c4 {[%clk 0:00:26]} 51... Ke7 {[%clk 0:00:05.8]} 52. Kg6 {[%clk 0:00:26.6]}
52... Ke8 {[%clk 0:00:05.8]} 53. Kf6 {[%clk 0:00:25.7]} 53... Kf8 {[%clk
0:00:06.1]} 54. c5 {[%clk 0:00:10.1]} 54... dxc5 {[%clk 0:00:05.8]} 55. Kxe5
{[%clk 0:00:11]} 55... Ke7 {[%clk 0:00:06.1]} 56. Kf5 {[%clk 0:00:11.6]} 56...
c4 {[%clk 0:00:04.6]} 57. Kf4 {[%clk 0:00:12]} 57... Kd6 {[%clk 0:00:04.9]} 58.
Kf3 {[%clk 0:00:11.4]} 58... Ke5 {[%clk 0:00:04.6]} 59. Ke3 {[%clk 0:00:11.8]}
59... c3 {[%clk 0:00:04.7]} 60. Kd3 {[%clk 0:00:12.3]} 60... c2 {[%clk
0:00:05.1]} 61. Kxc2 {[%clk 0:00:12.7]} 61... Kxe4 {[%clk 0:00:05.7]} 0-1

[Event "Late-Titled-Tuesday-Blitz-February-06-2024"]
[Site "Chess.com"]
[Date "2024.02.06"]
[Round "2"]
[White "Zhigalko_Sergei"]
[Black "manitodeplomo"]
[Result "1/2-1/2"]
[WhiteElo "2947"]
[BlackElo "2614"]
[TimeControl "180+1"]
[EndTime "14:19:09 PST"]
[Termination "Game drawn by stalemate"]

1. e4 {[%clk 0:03:00.9]} 1... e5 {[%clk 0:02:44.3]} 2. Nf3 {[%clk 0:03:00.7]}
2... Nf6 {[%clk 0:02:44.7]} 3. d4 {[%clk 0:02:59.8]} 3... Nxe4 {[%clk
0:02:43.9]} 4. Bd3 {[%clk 0:03:00.2]} 4... Nc6 {[%clk 0:02:41]} 5. d5 {[%clk
0:03:00.3]} 5... Nc5 {[%clk 0:02:38.3]} 6. dxc6 {[%clk 0:03:00.7]} 6... e4
{[%clk 0:02:37.8]} 7. cxb7 {[%clk 0:03:01.3]} 7... Bxb7 {[%clk 0:02:36.7]} 8.
Be2 {[%clk 0:03:01.9]} 8... exf3 {[%clk 0:02:35.6]} 9. Bxf3 {[%clk 0:03:02.8]}
9... Bxf3 {[%clk 0:02:35.2]} 10. Qxf3 {[%clk 0:03:03.7]} 10... Bd6 {[%clk
0:02:29.6]} 11. O-O {[%clk 0:02:58.3]} 11... O-O {[%clk 0:02:26.8]} 12. Be3
{[%clk 0:02:50.4]} 12... Qh4 {[%clk 0:02:13.9]} 13. g3 {[%clk 0:02:47.3]} 13...
Qe4 {[%clk 0:02:12.9]} 14. Qxe4 {[%clk 0:02:43.5]} 14... Nxe4 {[%clk 0:02:12.4]}
15. Nd2 {[%clk 0:02:36.8]} 15... Nxd2 {[%clk 0:02:08.8]} 16. Bxd2 {[%clk
0:02:37.7]} 16... Rfe8 {[%clk 0:02:08.5]} 17. Rfe1 {[%clk 0:02:35.3]} 17... f6
{[%clk 0:02:08.1]} 18. Kf1 {[%clk 0:02:32.9]} 18... Kf7 {[%clk 0:02:06.9]} 19.
b3 {[%clk 0:02:31.9]} 19... Rxe1+ {[%clk 0:01:51.2]} 20. Rxe1 {[%clk 0:02:32.8]}
20... Re8 {[%clk 0:01:48.3]} 21. Rd1 {[%clk 0:02:33]} 21... h5 {[%clk
0:01:19.5]} 22. Be3 {[%clk 0:02:27.5]} 22... a6 {[%clk 0:01:18.7]} 23. Rd4
{[%clk 0:02:23.5]} 23... Re6 {[%clk 0:01:07.5]} 24. Rc4 {[%clk 0:02:06.5]} 24...
Ke7 {[%clk 0:01:04.1]} 25. Ra4 {[%clk 0:01:32.2]} 25... Be5 {[%clk 0:00:59.7]}
26. Bc5+ {[%clk 0:01:32.4]} 26... Bd6 {[%clk 0:00:53.7]} 27. Be3 {[%clk
0:01:22.2]} 27... Be5 {[%clk 0:00:52.4]} 28. Ke2 {[%clk 0:01:20.7]} 28... Rc6
{[%clk 0:00:46.4]} 29. Kd3 {[%clk 0:01:19.5]} 29... Ke6 {[%clk 0:00:43.8]} 30.
Ra5 {[%clk 0:01:09.9]} 30... d5 {[%clk 0:00:34.4]} 31. Bd2 {[%clk 0:00:47]}
31... g5 {[%clk 0:00:30.3]} 32. h3 {[%clk 0:00:42.5]} 32... g4 {[%clk
0:00:27.9]} 33. hxg4 {[%clk 0:00:37.3]} 33... hxg4 {[%clk 0:00:28.8]} 34. Ra4
{[%clk 0:00:37]} 34... f5 {[%clk 0:00:27.4]} 35. Ra5 {[%clk 0:00:37.3]} 35...
Bf6 {[%clk 0:00:21.7]} 36. Bb4 {[%clk 0:00:23.8]} 36... Be5 {[%clk 0:00:19.8]}
37. Bc5 {[%clk 0:00:21.4]} 37... f4 {[%clk 0:00:18.1]} 38. gxf4 {[%clk
0:00:21.3]} 38... Bxf4 {[%clk 0:00:19]} 39. Bd4 {[%clk 0:00:19.4]} 39... Bd6
{[%clk 0:00:17.4]} 40. c4 {[%clk 0:00:17.3]} 40... dxc4+ {[%clk 0:00:16.7]} 41.
bxc4 {[%clk 0:00:18.2]} 41... Be7 {[%clk 0:00:12.1]} 42. Rh5 {[%clk 0:00:14.2]}
42... Rd6 {[%clk 0:00:10.7]} 43. Ke4 {[%clk 0:00:11.5]} 43... Rc6 {[%clk
0:00:10.1]} 44. Rh6+ {[%clk 0:00:04.1]} 44... Kd7 {[%clk 0:00:10.2]} 45. Rxc6
{[%clk 0:00:03.8]} 45... Kxc6 {[%clk 0:00:11.1]} 46. Kf5 {[%clk 0:00:04.2]}
46... Bc5 {[%clk 0:00:06.9]} 47. Bxc5 {[%clk 0:00:03.8]} 47... Kxc5 {[%clk
0:00:07.8]} 48. Kxg4 {[%clk 0:00:04.6]} 48... Kxc4 {[%clk 0:00:08.7]} 49. f4
{[%clk 0:00:05.1]} 49... Kd5 {[%clk 0:00:07.6]} 50. Kf3 {[%clk 0:00:02.7]} 50...
c5 {[%clk 0:00:07.2]} 51. Ke3 {[%clk 0:00:02.9]} 51... a5 {[%clk 0:00:06.6]} 52.
a4 {[%clk 0:00:03.2]} 52... c4 {[%clk 0:00:06.3]} 53. Kd2 {[%clk 0:00:02.2]}
53... Ke4 {[%clk 0:00:06.5]} 54. Kc3 {[%clk 0:00:03.1]} 54... Kxf4 {[%clk
0:00:06.8]} 55. Kxc4 {[%clk 0:00:04]} 55... Ke5 {[%clk 0:00:07.2]} 56. Kc5
{[%clk 0:00:04.9]} 56... Ke6 {[%clk 0:00:07.2]} 57. Kb6 {[%clk 0:00:05.8]} 57...
Kd7 {[%clk 0:00:07.7]} 58. Kb7 {[%clk 0:00:06.4]} 58... Kd8 {[%clk 0:00:07.4]}
59. Kb6 {[%clk 0:00:07.3]} 59... Kc8 {[%clk 0:00:08.3]} 60. Kxa5 {[%clk
0:00:08.2]} 60... Kb8 {[%clk 0:00:08.9]} 61. Kb6 {[%clk 0:00:09.1]} 61... Ka8
{[%clk 0:00:09.8]} 62. a5 {[%clk 0:00:10]} 62... Kb8 {[%clk 0:00:10.5]} 63. a6
{[%clk 0:00:10.9]} 63... Ka8 {[%clk 0:00:11.4]} 64. a7 {[%clk 0:00:11.8]}
1/2-1/2